[Event "Titled Tuesday Blitz June 28 Late 2022"]
[White "Domingo Nunez, Ruben"]
[Black "Urbina Perez, Juan Antonio"]
[WhiteFideId "22245570"]
[BlackFideId "2217368"]
[WhiteElo "2376"]
[BlackElo "2192"]
[Result "1-0"]
[Round "05"]
[TimeControl "180+1"]
[Date "2022.06.29"]
[WhiteClock "0:00:07"]
[BlackClock "0:00:04"]

1. c4 {[%clk 0:03:00]}  c6 {[%clk 0:02:56]} 2. Nc3 {[%clk 0:03:01]}  d5 {[%clk 0:02:57]} 3. g3 {[%clk 0:03:01]}  Nf6 {[%clk 0:02:54]} 4. Bg2 {[%clk 0:03:02]}  dxc4 {[%clk 0:02:55]} 5. Nf3 {[%clk 0:03:02]}  Be6 {[%clk 0:02:53]} 6. O-O {[%clk 0:03:02]}  g6 {[%clk 0:02:38]} 7. Ng5 {[%clk 0:03:01]}  Qd7 {[%clk 0:02:36]} 8. Nxe6 {[%clk 0:02:31]}  Qxe6 {[%clk 0:02:37]} 9. Nb5 {[%clk 0:02:32]}  Qd7 {[%clk 0:02:22]} 10. Na3 {[%clk 0:02:32]}  Bg7 {[%clk 0:02:22]} 11. Nxc4 {[%clk 0:02:32]}  O-O {[%clk 0:02:22]} 12. Rb1 {[%clk 0:02:23]}  a5 {[%clk 0:02:21]} 13. b3 {[%clk 0:02:22]}  Na6 {[%clk 0:02:21]} 14. Nb6 {[%clk 0:02:23]}  Qf5 {[%clk 0:02:16]} 15. e4 {[%clk 0:02:23]}  Nxe4 {[%clk 0:02:15]} 16. Nxa8 {[%clk 0:02:20]}  Rxa8 {[%clk 0:02:14]} 17. Bb2 {[%clk 0:02:05]}  Bh6 {[%clk 0:02:02]} 18. Bxe4 {[%clk 0:01:55]}  Qxe4 {[%clk 0:02:03]} 19. Re1 {[%clk 0:01:56]}  Qd3 {[%clk 0:01:48]} 20. Rxe7 {[%clk 0:01:54]}  Nc5 {[%clk 0:01:40]} 21. Rc1 {[%clk 0:01:45]}  Ne4 {[%clk 0:01:34]} 22. Qc2 {[%clk 0:01:36]}  Qxc2 {[%clk 0:01:07]} 23. Rxc2 {[%clk 0:01:37]}  Nxd2 {[%clk 0:01:00]} 24. Bc1 {[%clk 0:00:59]}  Nf3+ {[%clk 0:00:56]} 25. Kg2 {[%clk 0:00:56]}  Nd4 {[%clk 0:00:48]} 26. Rc4 {[%clk 0:00:56]}  Nf5 {[%clk 0:00:44]} 27. Rd7 {[%clk 0:00:45]}  Bxc1 {[%clk 0:00:37]} 28. Rxc1 {[%clk 0:00:45]}  a4 {[%clk 0:00:37]} 29. Rxb7 {[%clk 0:00:40]}  axb3 {[%clk 0:00:37]} 30. axb3 {[%clk 0:00:41]}  Nd4 {[%clk 0:00:36]} 31. Rc4 {[%clk 0:00:39]}  Rd8 {[%clk 0:00:34]} 32. Rbb4 {[%clk 0:00:33]}  Ne6 {[%clk 0:00:26]} 33. Rxc6 {[%clk 0:00:33]}  Rd2 {[%clk 0:00:27]} 34. Rb8+ {[%clk 0:00:24]}  Kg7 {[%clk 0:00:26]} 35. b4 {[%clk 0:00:24]}  h5 {[%clk 0:00:25]} 36. h4 {[%clk 0:00:24]}  Rb2 {[%clk 0:00:21]} 37. b5 {[%clk 0:00:14]}  Nd4 {[%clk 0:00:20]} 38. Rc5 {[%clk 0:00:14]}  Ne6 {[%clk 0:00:19]} 39. Re5 {[%clk 0:00:13]}  Kf6 {[%clk 0:00:18]} 40. Re3 {[%clk 0:00:12]}  Nd4 {[%clk 0:00:14]} 41. b6 {[%clk 0:00:12]}  Nf5 {[%clk 0:00:13]} 42. Rf3 {[%clk 0:00:11]}  Kg7 {[%clk 0:00:11]} 43. Rd3 {[%clk 0:00:07]}  Rb4 {[%clk 0:00:09]} 44. Rd7 {[%clk 0:00:06]}  Rb2 {[%clk 0:00:07]} 45. b7 {[%clk 0:00:06]}  Ne3+ {[%clk 0:00:07]} 46. Kf3 {[%clk 0:00:07]}  Nc4 {[%clk 0:00:04]} 47. Re8 {[%clk 0:00:07]} 1-0


[Site "https://www.chess.com"]

[Event "Titled Tuesday Blitz June 28 Late 2022"]
[White "Fajdetic, Hrvoje"]
[Black "Xie, Bryan"]
[WhiteFideId "14501945"]
[BlackFideId "30941296"]
[WhiteElo "2172"]
[BlackElo "1899"]
[Result "0-1"]
[Round "05"]
[TimeControl "180+1"]
[Date "2022.06.29"]
[WhiteClock "0:00:02"]
[BlackClock "0:00:16"]

1. b3 {[%clk 0:02:25]}  d5 {[%clk 0:02:46]} 2. Bb2 {[%clk 0:02:25]}  c5 {[%clk 0:02:45]} 3. f4 {[%clk 0:02:21]}  Nc6 {[%clk 0:02:41]} 4. Nf3 {[%clk 0:02:22]}  d4 {[%clk 0:02:42]} 5. g3 {[%clk 0:02:17]}  Bf5 {[%clk 0:02:35]} 6. Bg2 {[%clk 0:02:16]}  Nf6 {[%clk 0:02:29]} 7. O-O {[%clk 0:02:14]}  e6 {[%clk 0:02:26]} 8. h3 {[%clk 0:02:06]}  Bd6 {[%clk 0:02:12]} 9. a4 {[%clk 0:01:56]}  h5 {[%clk 0:01:58]} 10. e3 {[%clk 0:01:55]}  d3 {[%clk 0:01:52]} 11. Na3 {[%clk 0:01:24]}  Ne4 {[%clk 0:01:35]} 12. Kh2 {[%clk 0:01:18]}  dxc2 {[%clk 0:01:23]} 13. Nxc2 {[%clk 0:01:18]}  g5 {[%clk 0:01:23]} 14. d3 {[%clk 0:01:13]}  Nxg3 {[%clk 0:01:12]} 15. Kxg3 {[%clk 0:01:13]}  gxf4+ {[%clk 0:01:12]} 16. exf4 {[%clk 0:01:06]}  Rg8+ {[%clk 0:01:12]} 17. Kf2 {[%clk 0:01:00]}  Bxf4 {[%clk 0:01:05]} 18. d4 {[%clk 0:00:36]}  Qf6 {[%clk 0:00:44]} 19. Ra2 {[%clk 0:00:30]}  Qg6 {[%clk 0:00:30]} 20. Rg1 {[%clk 0:00:26]}  Bxc2 {[%clk 0:00:24]} 21. Qe2 {[%clk 0:00:24]}  Qg3+ {[%clk 0:00:23]} 22. Kf1 {[%clk 0:00:24]}  Bf5 {[%clk 0:00:21]} 23. d5 {[%clk 0:00:22]}  Nb4 {[%clk 0:00:19]} 24. dxe6 {[%clk 0:00:19]}  Bd3 {[%clk 0:00:18]} 25. exf7+ {[%clk 0:00:17]}  Kxf7 {[%clk 0:00:18]} 26. Ne5+ {[%clk 0:00:16]}  Bxe5 {[%clk 0:00:18]} 27. Bxe5 {[%clk 0:00:10]}  Bxe2+ {[%clk 0:00:17]} 28. Rxe2 {[%clk 0:00:11]}  Qxb3 {[%clk 0:00:16]} 29. Bf3 {[%clk 0:00:02]}  Qd1+ {[%clk 0:00:16]} 30. Kf2 {[%clk 0:00:02]}  Qxg1# {[%clk 0:00:16]} 0-1


[Site "https://www.chess.com"]

[Event "Titled Tuesday Blitz June 28 Late 2022"]
[White "Fernandez Sanchez, Mario Andres"]
[Black "Golubev, Mikhail"]
[WhiteFideId "6501621"]
[BlackFideId "14100983"]
[WhiteElo "2057"]
[BlackElo "2374"]
[Result "1-0"]
[Round "05"]
[TimeControl "180+1"]
[Date "2022.06.29"]
[WhiteClock "0:00:46"]
[BlackClock "0:00:09"]

1. d4 {[%clk 0:02:49]}  Nf6 {[%clk 0:02:59]} 2. Bf4 {[%clk 0:02:49]}  g6 {[%clk 0:02:57]} 3. Nc3 {[%clk 0:02:48]}  d5 {[%clk 0:02:49]} 4. e3 {[%clk 0:02:45]}  Bg7 {[%clk 0:02:48]} 5. h4 {[%clk 0:02:45]}  h5 {[%clk 0:02:43]} 6. Nf3 {[%clk 0:02:45]}  a6 {[%clk 0:02:38]} 7. Qd2 {[%clk 0:02:41]}  b6 {[%clk 0:02:16]} 8. O-O-O {[%clk 0:02:40]}  Bb7 {[%clk 0:02:16]} 9. Ne5 {[%clk 0:02:38]}  c5 {[%clk 0:02:06]} 10. f3 {[%clk 0:02:27]}  c4 {[%clk 0:02:01]} 11. g4 {[%clk 0:02:24]}  b5 {[%clk 0:01:47]} 12. g5 {[%clk 0:02:17]}  Nfd7 {[%clk 0:01:46]} 13. Bh3 {[%clk 0:02:01]}  Nxe5 {[%clk 0:01:30]} 14. dxe5 {[%clk 0:02:00]}  Nd7 {[%clk 0:00:30]} 15. e6 {[%clk 0:01:56]}  Nb6 {[%clk 0:00:25]} 16. Qh2 {[%clk 0:01:41]}  Rc8 {[%clk 0:00:20]} 17. exf7+ {[%clk 0:01:35]}  Kxf7 {[%clk 0:00:21]} 18. Bxc8 {[%clk 0:01:36]}  Qxc8 {[%clk 0:00:21]} 19. Be5 {[%clk 0:01:30]}  Qe6 {[%clk 0:00:21]} 20. Qf4+ {[%clk 0:01:21]}  Kg8 {[%clk 0:00:20]} 21. Bxg7 {[%clk 0:01:10]}  Kxg7 {[%clk 0:00:21]} 22. Qd4+ {[%clk 0:01:10]}  Kh7 {[%clk 0:00:20]} 23. e4 {[%clk 0:01:04]}  dxe4 {[%clk 0:00:20]} 24. Nxe4 {[%clk 0:01:04]}  c3 {[%clk 0:00:16]} 25. Nxc3 {[%clk 0:00:55]}  Rc8 {[%clk 0:00:15]} 26. Rhe1 {[%clk 0:00:49]}  Qe4 {[%clk 0:00:09]} 27. Rxe4 {[%clk 0:00:46]} 1-0


[Site "https://www.chess.com"]

[Event "Titled Tuesday Blitz June 28 Late 2022"]
[White "Fernandez Siles, Luis"]
[Black "Sargsyan, Anna M."]
[WhiteFideId "2209420"]
[BlackFideId "13308130"]
[WhiteElo "2211"]
[BlackElo "2271"]
[Result "1-0"]
[Round "05"]
[TimeControl "180+1"]
[Date "2022.06.29"]
[WhiteClock "0:00:02"]
[BlackClock "0:00:01"]

1. d4 {[%clk 0:02:59]}  d5 {[%clk 0:02:52]} 2. c4 {[%clk 0:02:58]}  c6 {[%clk 0:02:52]} 3. cxd5 {[%clk 0:02:57]}  cxd5 {[%clk 0:02:52]} 4. Bf4 {[%clk 0:02:57]}  Nc6 {[%clk 0:02:52]} 5. e3 {[%clk 0:02:57]}  Nf6 {[%clk 0:02:53]} 6. Nc3 {[%clk 0:02:57]}  Bf5 {[%clk 0:02:53]} 7. Qb3 {[%clk 0:02:56]}  Na5 {[%clk 0:02:52]} 8. Qa4+ {[%clk 0:02:55]}  Bd7 {[%clk 0:02:52]} 9. Bb5 {[%clk 0:02:56]}  e6 {[%clk 0:02:44]} 10. Nf3 {[%clk 0:02:54]}  a6 {[%clk 0:02:41]} 11. Bxd7+ {[%clk 0:02:49]}  Nxd7 {[%clk 0:02:41]} 12. O-O {[%clk 0:02:33]}  b5 {[%clk 0:02:41]} 13. Qd1 {[%clk 0:02:16]}  Be7 {[%clk 0:02:41]} 14. Qe2 {[%clk 0:01:49]}  O-O {[%clk 0:02:37]} 15. Rfc1 {[%clk 0:01:49]}  Rc8 {[%clk 0:02:33]} 16. Rc2 {[%clk 0:01:44]}  Nc4 {[%clk 0:02:29]} 17. Rac1 {[%clk 0:01:35]}  Ndb6 {[%clk 0:02:28]} 18. a3 {[%clk 0:01:26]}  Nxb2 {[%clk 0:02:17]} 19. Nxd5 {[%clk 0:01:16]}  Qxd5 {[%clk 0:01:46]} 20. Rxc8 {[%clk 0:01:03]}  Rxc8 {[%clk 0:01:33]} 21. Rxc8+ {[%clk 0:01:02]}  Nxc8 {[%clk 0:01:34]} 22. Qxb2 {[%clk 0:01:03]}  Nb6 {[%clk 0:01:33]} 23. Nd2 {[%clk 0:00:24]}  g5 {[%clk 0:01:28]} 24. Bc7 {[%clk 0:00:23]}  Na4 {[%clk 0:01:26]} 25. Qc2 {[%clk 0:00:15]}  Bxa3 {[%clk 0:01:21]} 26. Ne4 {[%clk 0:00:15]}  Be7 {[%clk 0:01:04]} 27. Bd6 {[%clk 0:00:16]}  f5 {[%clk 0:00:05]} 28. Qc8+ {[%clk 0:00:08]}  Kf7 {[%clk 0:00:04]} 29. Qd7 {[%clk 0:00:09]}  fxe4 {[%clk 0:00:02]} 30. Qxe7+ {[%clk 0:00:09]}  Kg6 {[%clk 0:00:02]} 31. Be5 {[%clk 0:00:06]}  Kh6 {[%clk 0:00:01]} 32. Qf6+ {[%clk 0:00:05]}  Kh5 {[%clk 0:00:01]} 33. Qg7 {[%clk 0:00:02]} 1-0


[Site "https://www.chess.com"]

[Event "Titled Tuesday Blitz June 28 Late 2022"]
[White "Gabdushev, Ruslan"]
[Black "Gardezi, Arsal"]
[WhiteFideId "4137833"]
[BlackFideId "30949521"]
[WhiteElo "2312"]
[BlackElo "1781"]
[Result "1-0"]
[Round "05"]
[TimeControl "180+1"]
[Date "2022.06.29"]
[WhiteClock "0:00:14"]
[BlackClock "0:00:02"]

1. b3 {[%clk 0:03:00]}  e5 {[%clk 0:02:59]} 2. Bb2 {[%clk 0:02:59]}  Nc6 {[%clk 0:02:58]} 3. e3 {[%clk 0:03:00]}  d5 {[%clk 0:02:58]} 4. Bb5 {[%clk 0:02:59]}  Bd6 {[%clk 0:02:54]} 5. f4 {[%clk 0:02:58]}  Qe7 {[%clk 0:02:14]} 6. Nf3 {[%clk 0:02:52]}  f6 {[%clk 0:02:08]} 7. O-O {[%clk 0:02:47]}  Be6 {[%clk 0:02:05]} 8. c4 {[%clk 0:02:26]}  O-O-O {[%clk 0:01:49]} 9. cxd5 {[%clk 0:02:20]}  Bxd5 {[%clk 0:01:48]} 10. Nc3 {[%clk 0:02:20]}  Bxf3 {[%clk 0:01:05]} 11. Qxf3 {[%clk 0:02:17]}  Nb4 {[%clk 0:00:47]} 12. a3 {[%clk 0:02:00]}  Nc2 {[%clk 0:00:46]} 13. Nd5 {[%clk 0:01:29]}  Qe6 {[%clk 0:00:19]} 14. Rac1 {[%clk 0:01:24]}  e4 {[%clk 0:00:16]} 15. Qe2 {[%clk 0:01:10]}  Qxd5 {[%clk 0:00:16]} 16. Rxc2 {[%clk 0:01:06]}  Kb8 {[%clk 0:00:16]} 17. Bc4 {[%clk 0:01:03]}  Qf5 {[%clk 0:00:15]} 18. g4 {[%clk 0:00:43]}  Qd7 {[%clk 0:00:15]} 19. Qg2 {[%clk 0:00:42]}  h5 {[%clk 0:00:14]} 20. g5 {[%clk 0:00:42]}  Ne7 {[%clk 0:00:14]} 21. Qxe4 {[%clk 0:00:39]}  Qg4+ {[%clk 0:00:11]} 22. Qg2 {[%clk 0:00:37]}  Qf5 {[%clk 0:00:11]} 23. e4 {[%clk 0:00:33]}  Qd7 {[%clk 0:00:09]} 24. d4 {[%clk 0:00:22]}  fxg5 {[%clk 0:00:07]} 25. Qxg5 {[%clk 0:00:21]}  Rhf8 {[%clk 0:00:05]} 26. e5 {[%clk 0:00:16]}  Rf5 {[%clk 0:00:02]} 27. Qxg7 {[%clk 0:00:14]} 1-0


[Site "https://www.chess.com"]

[Event "Titled Tuesday Blitz June 28 Late 2022"]
[White "Gubajdullin, Alexei"]
[Black "Acosta, Pablo Ismael"]
[WhiteFideId "4141202"]
[BlackFideId "124311"]
[WhiteElo "2280"]
[BlackElo "2313"]
[Result "1-0"]
[Round "05"]
[TimeControl "180+1"]
[Date "2022.06.28"]
[WhiteClock "0:00:07"]
[BlackClock "0:00:20"]

1. c4 {[%clk 0:03:00]}  g6 {[%clk 0:02:54]} 2. Nf3 {[%clk 0:02:59]}  Bg7 {[%clk 0:02:55]} 3. g3 {[%clk 0:02:59]}  c5 {[%clk 0:02:54]} 4. Bg2 {[%clk 0:02:58]}  Nc6 {[%clk 0:02:55]} 5. O-O {[%clk 0:02:57]}  d6 {[%clk 0:02:51]} 6. Nc3 {[%clk 0:02:56]}  e6 {[%clk 0:02:51]} 7. a3 {[%clk 0:02:54]}  Nge7 {[%clk 0:02:51]} 8. b4 {[%clk 0:02:53]}  O-O {[%clk 0:02:47]} 9. Rb1 {[%clk 0:02:49]}  Rb8 {[%clk 0:02:41]} 10. bxc5 {[%clk 0:02:32]}  dxc5 {[%clk 0:02:41]} 11. Ne4 {[%clk 0:02:32]}  b6 {[%clk 0:02:36]} 12. d3 {[%clk 0:02:32]}  f5 {[%clk 0:02:31]} 13. Ned2 {[%clk 0:02:24]}  Bb7 {[%clk 0:02:31]} 14. Bb2 {[%clk 0:02:23]}  e5 {[%clk 0:02:24]} 15. a4 {[%clk 0:01:53]}  Qd6 {[%clk 0:02:18]} 16. Qb3 {[%clk 0:01:19]}  h6 {[%clk 0:02:14]} 17. Bc3 {[%clk 0:01:17]}  Nd4 {[%clk 0:01:56]} 18. Bxd4 {[%clk 0:01:15]}  exd4 {[%clk 0:01:50]} 19. a5 {[%clk 0:01:13]}  bxa5 {[%clk 0:01:24]} 20. Qa3 {[%clk 0:01:13]}  Nc6 {[%clk 0:01:16]} 21. Nb3 {[%clk 0:01:12]}  Rfc8 {[%clk 0:00:57]} 22. Qxc5 {[%clk 0:01:01]}  Qxc5 {[%clk 0:00:50]} 23. Nxc5 {[%clk 0:01:01]}  Ba8 {[%clk 0:00:51]} 24. Nh4 {[%clk 0:00:34]}  Kh7 {[%clk 0:00:48]} 25. Bd5 {[%clk 0:00:22]}  Ne7 {[%clk 0:00:45]} 26. Bxa8 {[%clk 0:00:21]}  Rxa8 {[%clk 0:00:43]} 27. Rb7 {[%clk 0:00:17]}  Bf6 {[%clk 0:00:34]} 28. Nd7 {[%clk 0:00:15]}  Bxh4 {[%clk 0:00:33]} 29. gxh4 {[%clk 0:00:14]}  Kg7 {[%clk 0:00:32]} 30. Ra1 {[%clk 0:00:09]}  Kf7 {[%clk 0:00:24]} 31. Rxa5 {[%clk 0:00:09]}  Ke8 {[%clk 0:00:23]} 32. Ne5 {[%clk 0:00:07]}  a6 {[%clk 0:00:23]} 33. c5 {[%clk 0:00:06]}  Rcb8 {[%clk 0:00:23]} 34. Rb6 {[%clk 0:00:05]}  Rxb6 {[%clk 0:00:22]} 35. cxb6 {[%clk 0:00:05]}  Rb8 {[%clk 0:00:22]} 36. Nc4 {[%clk 0:00:04]}  Kd7 {[%clk 0:00:21]} 37. Rxa6 {[%clk 0:00:04]}  Rb7 {[%clk 0:00:21]} 38. Ra7 {[%clk 0:00:04]}  Kc6 {[%clk 0:00:15]} 39. Na5+ {[%clk 0:00:04]}  Kxb6 {[%clk 0:00:16]} 40. Rxb7+ {[%clk 0:00:05]}  Kxa5 {[%clk 0:00:17]} 41. Rxe7 {[%clk 0:00:05]}  Kb4 {[%clk 0:00:17]} 42. Re6 {[%clk 0:00:06]}  Kc3 {[%clk 0:00:18]} 43. Rxg6 {[%clk 0:00:07]}  Kd2 {[%clk 0:00:19]} 44. Rxh6 {[%clk 0:00:07]}  Kxe2 {[%clk 0:00:19]} 45. Kg2 {[%clk 0:00:07]}  f4 {[%clk 0:00:19]} 46. Rf6 {[%clk 0:00:07]}  f3+ {[%clk 0:00:19]} 47. Rxf3 {[%clk 0:00:07]}  Kd2 {[%clk 0:00:20]} 48. h5 {[%clk 0:00:07]} 1-0


[Site "https://www.chess.com"]

[Event "Titled Tuesday Blitz June 28 Late 2022"]
[White "Gurevich, Dmitry"]
[Black "Ipek, Egehan"]
[WhiteFideId "2000407"]
[BlackFideId "44523793"]
[WhiteElo "2506"]
[BlackElo "1413"]
[Result "1-0"]
[Round "05"]
[TimeControl "180+1"]
[Date "2022.06.29"]
[WhiteClock "0:00:09"]
[BlackClock "0:00:06"]

1. d4 {[%clk 0:03:00]}  d5 {[%clk 0:02:59]} 2. c4 {[%clk 0:03:00]}  c6 {[%clk 0:03:00]} 3. Nf3 {[%clk 0:02:58]}  Nf6 {[%clk 0:03:01]} 4. Nc3 {[%clk 0:02:58]}  dxc4 {[%clk 0:03:01]} 5. a4 {[%clk 0:02:58]}  Bf5 {[%clk 0:03:02]} 6. Nh4 {[%clk 0:02:56]}  e6 {[%clk 0:02:58]} 7. Nxf5 {[%clk 0:02:55]}  exf5 {[%clk 0:02:59]} 8. Bg5 {[%clk 0:02:51]}  Bb4 {[%clk 0:02:54]} 9. e3 {[%clk 0:02:49]}  b5 {[%clk 0:02:54]} 10. axb5 {[%clk 0:02:42]}  cxb5 {[%clk 0:02:53]} 11. Qf3 {[%clk 0:02:40]}  Bxc3+ {[%clk 0:02:40]} 12. bxc3 {[%clk 0:02:38]}  Qd5 {[%clk 0:02:41]} 13. Bxf6 {[%clk 0:02:29]}  Qxf3 {[%clk 0:02:41]} 14. gxf3 {[%clk 0:02:28]}  gxf6 {[%clk 0:02:42]} 15. Bh3 {[%clk 0:02:27]}  Nd7 {[%clk 0:02:13]} 16. Bxf5 {[%clk 0:02:25]}  Ke7 {[%clk 0:02:04]} 17. Ra6 {[%clk 0:02:17]}  Nb8 {[%clk 0:01:54]} 18. Ra5 {[%clk 0:02:09]}  a6 {[%clk 0:01:50]} 19. Be4 {[%clk 0:02:08]}  Ra7 {[%clk 0:01:50]} 20. Ke2 {[%clk 0:02:08]}  Rd8 {[%clk 0:01:34]} 21. Rb1 {[%clk 0:01:59]}  Rdd7 {[%clk 0:01:29]} 22. Bxh7 {[%clk 0:01:46]}  Nc6 {[%clk 0:01:28]} 23. Ra2 {[%clk 0:01:46]}  Nd8 {[%clk 0:01:19]} 24. Bf5 {[%clk 0:01:41]}  Rdb7 {[%clk 0:01:14]} 25. Be4 {[%clk 0:01:36]}  Rb6 {[%clk 0:01:13]} 26. Ra5 {[%clk 0:01:32]}  Ne6 {[%clk 0:01:04]} 27. h4 {[%clk 0:01:27]}  Rd7 {[%clk 0:00:56]} 28. h5 {[%clk 0:01:23]}  Nc7 {[%clk 0:00:53]} 29. h6 {[%clk 0:01:19]}  Rd8 {[%clk 0:00:47]} 30. h7 {[%clk 0:01:14]}  Rh8 {[%clk 0:00:36]} 31. Rg1 {[%clk 0:01:13]}  Rbb8 {[%clk 0:00:26]} 32. Raa1 {[%clk 0:01:07]}  Ke6 {[%clk 0:00:27]} 33. Rg7 {[%clk 0:00:35]}  f5 {[%clk 0:00:23]} 34. Bc6 {[%clk 0:00:33]}  Kf6 {[%clk 0:00:21]} 35. Rag1 {[%clk 0:00:29]}  Rb6 {[%clk 0:00:18]} 36. d5 {[%clk 0:00:26]}  a5 {[%clk 0:00:15]} 37. e4 {[%clk 0:00:23]}  fxe4 {[%clk 0:00:11]} 38. fxe4 {[%clk 0:00:23]}  b4 {[%clk 0:00:10]} 39. f4 {[%clk 0:00:23]}  b3 {[%clk 0:00:07]} 40. e5+ {[%clk 0:00:23]}  Kf5 {[%clk 0:00:06]} 41. Kf3 {[%clk 0:00:22]}  f6 {[%clk 0:00:02]} 42. Bd7+ {[%clk 0:00:21]}  Ne6 {[%clk 0:00:01]} 43. dxe6 {[%clk 0:00:20]}  fxe5 {[%clk 0:00:01]} 44. e7+ {[%clk 0:00:19]}  Kf6 {[%clk 0:00:01]} 45. e8=Q {[%clk 0:00:16]}  Rxe8 {[%clk 0:00:02]} 46. Bxe8 {[%clk 0:00:15]}  e4+ {[%clk 0:00:03]} 47. Ke3 {[%clk 0:00:13]}  b2 {[%clk 0:00:04]} 48. h8=Q {[%clk 0:00:13]}  b1=Q {[%clk 0:00:05]} 49. Rxb1 {[%clk 0:00:12]}  Rxb1 {[%clk 0:00:05]} 50. Rc7+ {[%clk 0:00:09]}  Ke6 {[%clk 0:00:06]} 51. Qe5# {[%clk 0:00:09]} 1-0


[Site "https://www.chess.com"]

[Event "Titled Tuesday Blitz June 28 Late 2022"]
[White "Hansen, Eric"]
[Black "Baches Garcia, Guillermo"]
[WhiteFideId "2606771"]
[BlackFideId "2209764"]
[WhiteElo "2568"]
[BlackElo "2507"]
[Result "1-0"]
[Round "05"]
[TimeControl "180+1"]
[Date "2022.06.29"]
[WhiteClock "0:00:53"]
[BlackClock "0:00:06"]

1. e4 {[%clk 0:02:58]}  c5 {[%clk 0:03:00]} 2. Nf3 {[%clk 0:02:58]}  d6 {[%clk 0:03:00]} 3. d4 {[%clk 0:02:58]}  cxd4 {[%clk 0:03:00]} 4. Nxd4 {[%clk 0:02:58]}  Nf6 {[%clk 0:03:01]} 5. Nc3 {[%clk 0:02:58]}  Nc6 {[%clk 0:03:01]} 6. Bg5 {[%clk 0:02:58]}  e6 {[%clk 0:03:02]} 7. Qd2 {[%clk 0:02:58]}  h6 {[%clk 0:03:02]} 8. Be3 {[%clk 0:02:58]}  Ng4 {[%clk 0:03:00]} 9. Nxc6 {[%clk 0:02:45]}  bxc6 {[%clk 0:03:00]} 10. Bf4 {[%clk 0:02:45]}  e5 {[%clk 0:03:00]} 11. Bg3 {[%clk 0:02:45]}  Be7 {[%clk 0:03:00]} 12. Be2 {[%clk 0:02:41]}  O-O {[%clk 0:02:53]} 13. O-O {[%clk 0:02:35]}  Be6 {[%clk 0:02:37]} 14. Bxg4 {[%clk 0:02:23]}  Bxg4 {[%clk 0:02:37]} 15. f3 {[%clk 0:02:24]}  Be6 {[%clk 0:02:32]} 16. Na4 {[%clk 0:02:21]}  Rb8 {[%clk 0:02:00]} 17. b3 {[%clk 0:02:21]}  f5 {[%clk 0:01:51]} 18. exf5 {[%clk 0:02:20]}  Bxf5 {[%clk 0:01:46]} 19. c4 {[%clk 0:02:18]}  Bg5 {[%clk 0:01:40]} 20. Qc3 {[%clk 0:02:14]}  Bf6 {[%clk 0:01:35]} 21. Rad1 {[%clk 0:02:12]}  Qe7 {[%clk 0:01:25]} 22. Qe3 {[%clk 0:01:53]}  Rfe8 {[%clk 0:01:19]} 23. Rfe1 {[%clk 0:01:51]}  Rbd8 {[%clk 0:01:13]} 24. Nc3 {[%clk 0:01:51]}  Qf7 {[%clk 0:00:59]} 25. Bf2 {[%clk 0:01:43]}  d5 {[%clk 0:00:53]} 26. cxd5 {[%clk 0:01:37]}  cxd5 {[%clk 0:00:54]} 27. Qxa7 {[%clk 0:01:37]}  Qxa7 {[%clk 0:00:35]} 28. Bxa7 {[%clk 0:01:36]}  d4 {[%clk 0:00:33]} 29. Ne4 {[%clk 0:01:36]}  Bxe4 {[%clk 0:00:19]} 30. Rxe4 {[%clk 0:01:35]}  Ra8 {[%clk 0:00:20]} 31. Bc5 {[%clk 0:01:34]}  Rxa2 {[%clk 0:00:18]} 32. b4 {[%clk 0:01:18]}  Kf7 {[%clk 0:00:18]} 33. Rde1 {[%clk 0:01:13]}  Rea8 {[%clk 0:00:17]} 34. f4 {[%clk 0:01:07]}  exf4 {[%clk 0:00:16]} 35. Bxd4 {[%clk 0:01:08]}  Bxd4+ {[%clk 0:00:15]} 36. Rxd4 {[%clk 0:01:08]}  Rb2 {[%clk 0:00:13]} 37. Rxf4+ {[%clk 0:01:08]}  Kg6 {[%clk 0:00:14]} 38. h4 {[%clk 0:01:03]}  Raa2 {[%clk 0:00:07]} 39. Rg4+ {[%clk 0:01:03]}  Kh5 {[%clk 0:00:07]} 40. Rxg7 {[%clk 0:01:00]}  Kxh4 {[%clk 0:00:07]} 41. Re4+ {[%clk 0:00:57]}  Kh5 {[%clk 0:00:07]} 42. Re3 {[%clk 0:00:54]}  Rxb4 {[%clk 0:00:06]} 43. Rh3+ {[%clk 0:00:53]}  Rh4 {[%clk 0:00:06]} 44. g4# {[%clk 0:00:53]} 1-0


[Site "https://www.chess.com"]

[Event "Titled Tuesday Blitz June 28 Late 2022"]
[White "Holt, Conrad"]
[Black "Pulpan, Jakub"]
[WhiteFideId "2034387"]
[BlackFideId "302759"]
[WhiteElo "2586"]
[BlackElo "2495"]
[Result "0-1"]
[Round "05"]
[TimeControl "180+1"]
[Date "2022.06.28"]
[WhiteClock "0:00:03"]
[BlackClock "0:00:47"]

1. d4 {[%clk 0:03:00]}  Nf6 {[%clk 0:02:47]} 2. c4 {[%clk 0:03:00]}  e6 {[%clk 0:02:48]} 3. Nc3 {[%clk 0:03:00]}  Bb4 {[%clk 0:02:48]} 4. Qc2 {[%clk 0:03:01]}  O-O {[%clk 0:02:48]} 5. e4 {[%clk 0:03:00]}  d5 {[%clk 0:02:49]} 6. e5 {[%clk 0:03:00]}  Ne4 {[%clk 0:02:49]} 7. Bd3 {[%clk 0:03:00]}  c5 {[%clk 0:02:50]} 8. Nf3 {[%clk 0:03:01]}  cxd4 {[%clk 0:02:50]} 9. Nxd4 {[%clk 0:03:02]}  Nd7 {[%clk 0:02:51]} 10. Bf4 {[%clk 0:03:02]}  Qh4 {[%clk 0:02:50]} 11. g3 {[%clk 0:03:02]}  Qh5 {[%clk 0:02:50]} 12. f3 {[%clk 0:02:57]}  Bxc3+ {[%clk 0:02:41]} 13. bxc3 {[%clk 0:02:56]}  Nec5 {[%clk 0:02:42]} 14. g4 {[%clk 0:02:53]}  Nxd3+ {[%clk 0:02:36]} 15. Qxd3 {[%clk 0:02:52]}  dxc4 {[%clk 0:02:15]} 16. gxh5 {[%clk 0:02:48]}  cxd3 {[%clk 0:02:15]} 17. Rg1 {[%clk 0:02:46]}  Rd8 {[%clk 0:02:03]} 18. Kd2 {[%clk 0:02:37]}  a6 {[%clk 0:01:59]} 19. Bg5 {[%clk 0:02:30]}  Re8 {[%clk 0:01:57]} 20. Rae1 {[%clk 0:02:16]}  b5 {[%clk 0:01:51]} 21. h4 {[%clk 0:01:55]}  Kf8 {[%clk 0:01:29]} 22. h6 {[%clk 0:01:46]}  g6 {[%clk 0:01:29]} 23. h5 {[%clk 0:01:45]}  Bb7 {[%clk 0:01:28]} 24. hxg6 {[%clk 0:01:32]}  fxg6 {[%clk 0:01:28]} 25. Rg4 {[%clk 0:01:28]}  Bd5 {[%clk 0:01:26]} 26. Nb3 {[%clk 0:01:08]}  Kg8 {[%clk 0:01:17]} 27. Rd4 {[%clk 0:01:05]}  Nb6 {[%clk 0:01:13]} 28. f4 {[%clk 0:00:59]}  Rac8 {[%clk 0:01:05]} 29. Kxd3 {[%clk 0:00:58]}  Na4 {[%clk 0:01:05]} 30. Rc1 {[%clk 0:00:56]}  Rf8 {[%clk 0:01:04]} 31. Rc2 {[%clk 0:00:50]}  Rf7 {[%clk 0:01:02]} 32. Na5 {[%clk 0:00:44]}  Rfc7 {[%clk 0:00:58]} 33. Rxa4 {[%clk 0:00:34]}  bxa4 {[%clk 0:00:53]} 34. c4 {[%clk 0:00:35]}  Rc5 {[%clk 0:00:50]} 35. cxd5 {[%clk 0:00:05]}  Rxd5+ {[%clk 0:00:51]} 36. Ke4 {[%clk 0:00:04]}  Rxc2 {[%clk 0:00:52]} 37. Nb7 {[%clk 0:00:04]}  Rxa2 {[%clk 0:00:48]} 38. Nd6 {[%clk 0:00:05]}  Rxd6 {[%clk 0:00:47]} 39. exd6 {[%clk 0:00:05]}  Rd2 {[%clk 0:00:47]} 40. Ke5 {[%clk 0:00:04]}  Kf7 {[%clk 0:00:47]} 41. f5 {[%clk 0:00:03]}  Rd5+ {[%clk 0:00:47]} 42. Ke4 {[%clk 0:00:03]}  gxf5+ {[%clk 0:00:47]} 0-1


[Site "https://www.chess.com"]